[Event "Betsys MČR v online bleskovém šachu 2021"]
[Site "Chess.com"]
[Date "2021.04.17"]
[Round "2"]
[White "pedroholly22"]
[Black "g4g5g4g5"]
[Result "1-0"]
[WhiteElo "2394"]
[BlackElo "2008"]
[TimeControl "180+1"]
[EndTime "9:18:41 PDT"]
[Termination "Uživatel pedroholly22 zvítězil na čas"]

1. e4 {[%clk 0:03:00.9]} 1... e5 {[%clk 0:02:59.5]} 2. Nf3 {[%clk 0:02:59.9]}
2... Nc6 {[%clk 0:02:59.5]} 3. Bb5 {[%clk 0:02:57]} 3... a6 {[%clk 0:02:59.5]}
4. Ba4 {[%clk 0:02:56.7]} 4... Nf6 {[%clk 0:02:59.5]} 5. O-O {[%clk 0:02:56.2]}
5... Be7 {[%clk 0:02:59.6]} 6. Re1 {[%clk 0:02:56]} 6... b5 {[%clk 0:02:59.7]}
7. Bb3 {[%clk 0:02:56.1]} 7... d6 {[%clk 0:02:59.9]} 8. c3 {[%clk 0:02:53.2]}
8... O-O {[%clk 0:02:59.6]} 9. h3 {[%clk 0:02:53.2]} 9... Na5 {[%clk 0:02:59.6]}
10. Bc2 {[%clk 0:02:52.4]} 10... c5 {[%clk 0:02:59.8]} 11. d4 {[%clk 0:02:52.2]}
11... exd4 {[%clk 0:02:59.8]} 12. cxd4 {[%clk 0:02:52]} 12... Bb7 {[%clk
0:03:00]} 13. b3 {[%clk 0:02:20.2]} 13... Nd7 {[%clk 0:02:38.1]} 14. Bb2 {[%clk
0:02:19.1]} 14... cxd4 {[%clk 0:02:23.8]} 15. Nxd4 {[%clk 0:02:17.5]} 15... Bf6
{[%clk 0:02:23.2]} 16. Nd2 {[%clk 0:02:15.9]} 16... Nc6 {[%clk 0:02:15.1]} 17.
Nf1 {[%clk 0:02:09.7]} 17... Qb6 {[%clk 0:02:01.3]} 18. Nxc6 {[%clk 0:01:51.1]}
18... Qxc6 {[%clk 0:01:57.6]} 19. Bxf6 {[%clk 0:01:35.1]} 19... Nxf6 {[%clk
0:01:58.5]} 20. Ng3 {[%clk 0:01:34.7]} 20... Rfe8 {[%clk 0:01:32]} 21. Rc1
{[%clk 0:01:31.2]} 21... Qd7 {[%clk 0:01:30.3]} 22. Bb1 {[%clk 0:01:23.2]} 22...
Rad8 {[%clk 0:01:26.8]} 23. Nf5 {[%clk 0:00:54]} 23... g6 {[%clk 0:01:20.3]} 24.
Ng3 {[%clk 0:00:37.3]} 24... Rc8 {[%clk 0:00:34.8]} 25. Qd4 {[%clk 0:00:25.5]}
25... Qe7 {[%clk 0:00:28.6]} 26. Rcd1 {[%clk 0:00:18.7]} 26... Rcd8 {[%clk
0:00:27.5]} 27. Re3 {[%clk 0:00:15.5]} 27... Qe5 {[%clk 0:00:27.1]} 28. Rc3
{[%clk 0:00:10.8]} 28... Rc8 {[%clk 0:00:20]} 29. Rxc8 {[%clk 0:00:10.2]} 29...
Rxc8 {[%clk 0:00:19.5]} 30. Qxe5 {[%clk 0:00:09.9]} 30... dxe5 {[%clk
0:00:19.2]} 31. Bd3 {[%clk 0:00:10.8]} 31... Rd8 {[%clk 0:00:18]} 32. f3 {[%clk
0:00:10.9]} 32... Rd4 {[%clk 0:00:16.8]} 33. Kf1 {[%clk 0:00:10.3]} 33... Nd7
{[%clk 0:00:14.7]} 34. Be2 {[%clk 0:00:10.2]} 34... Rxd1+ {[%clk 0:00:12.9]} 35.
Bxd1 {[%clk 0:00:11.1]} 35... f6 {[%clk 0:00:13.2]} 36. Be2 {[%clk 0:00:11.5]}
36... Kf7 {[%clk 0:00:11.7]} 37. Ke1 {[%clk 0:00:12.4]} 37... Ke6 {[%clk
0:00:11.6]} 38. Kd2 {[%clk 0:00:13.1]} 38... Kd6 {[%clk 0:00:11.9]} 39. Ke3
{[%clk 0:00:13.1]} 39... a5 {[%clk 0:00:11.8]} 40. Bxb5 {[%clk 0:00:12.5]} 40...
Nb6 {[%clk 0:00:11.6]} 41. Ne2 {[%clk 0:00:11.8]} 41... Kc5 {[%clk 0:00:11]} 42.
Bd3 {[%clk 0:00:12.4]} 42... Bc6 {[%clk 0:00:10.5]} 43. Nc3 {[%clk 0:00:12.4]}
43... a4 {[%clk 0:00:10.6]} 44. bxa4 {[%clk 0:00:12.6]} 44... Bxa4 {[%clk
0:00:10.3]} 45. a3 {[%clk 0:00:12.1]} 45... Bc6 {[%clk 0:00:09.1]} 46. Bc2
{[%clk 0:00:11.8]} 46... Kc4 {[%clk 0:00:08.5]} 47. Ne2 {[%clk 0:00:10.8]} 47...
Na4 {[%clk 0:00:01.8]} 48. Bxa4 {[%clk 0:00:09]} 48... Bxa4 {[%clk 0:00:01.8]}
49. f4 {[%clk 0:00:09.5]} 49... Kb3 {[%clk 0:00:02.3]} 50. fxe5 {[%clk
0:00:09.6]} 50... fxe5 {[%clk 0:00:03]} 51. Ng1 {[%clk 0:00:09.5]} 51... Kxa3
{[%clk 0:00:03.4]} 52. Nf3 {[%clk 0:00:09.9]} 52... Kb4 {[%clk 0:00:03.3]} 53.
Nxe5 {[%clk 0:00:10.4]} 53... Kc5 {[%clk 0:00:03.7]} 54. Nf7 {[%clk 0:00:11]}
54... Kc6 {[%clk 0:00:02.6]} 55. Ng5 {[%clk 0:00:11.6]} 55... h6 {[%clk
0:00:01.8]} 56. Nf7 {[%clk 0:00:11.1]} 56... Kd7 {[%clk 0:00:01.4]} 57. Nxh6
{[%clk 0:00:10.9]} 57... Ke6 {[%clk 0:00:02.3]} 58. Ng4 {[%clk 0:00:11.5]} 58...
g5 {[%clk 0:00:01.6]} 59. Nh2 {[%clk 0:00:10.9]} 59... Kf6 {[%clk 0:00:01.5]}
60. Nf3 {[%clk 0:00:11.8]} 60... Bc6 {[%clk 0:00:01]} 61. Nd4 {[%clk 0:00:11.8]}
1-0

[Event "Betsys MČR v online bleskovém šachu 2021"]
[Site "Chess.com"]
[Date "2021.04.17"]
[Round "2"]
[White "Classemence"]
[Black "Svandik49"]
[Result "0-1"]
[WhiteElo "1926"]
[BlackElo "2272"]
[TimeControl "180+1"]
[EndTime "9:18:43 PDT"]
[Termination "Uživatel Svandik49 zvítězil matem"]

1. e4 {[%clk 0:03:00.9]} 1... c5 {[%clk 0:02:59.5]} 2. Nf3 {[%clk 0:02:59.4]}
2... e6 {[%clk 0:02:59.7]} 3. Nc3 {[%clk 0:02:56.8]} 3... Nc6 {[%clk 0:02:59.4]}
4. Bb5 {[%clk 0:02:54.8]} 4... Nge7 {[%clk 0:02:55.9]} 5. Bxc6 {[%clk
0:02:54.4]} 5... Nxc6 {[%clk 0:02:55.5]} 6. O-O {[%clk 0:02:53.9]} 6... Be7
{[%clk 0:02:54.5]} 7. d3 {[%clk 0:02:54]} 7... O-O {[%clk 0:02:53.5]} 8. Nd2
{[%clk 0:02:35.2]} 8... d5 {[%clk 0:02:48.4]} 9. f4 {[%clk 0:02:34.2]} 9... dxe4
{[%clk 0:02:28.6]} 10. Ndxe4 {[%clk 0:02:23.6]} 10... Nd4 {[%clk 0:02:25.1]} 11.
Be3 {[%clk 0:02:15.2]} 11... b6 {[%clk 0:02:23.9]} 12. Ne2 {[%clk 0:02:08.8]}
12... Bb7 {[%clk 0:02:15.4]} 13. Bxd4 {[%clk 0:01:46.5]} 13... cxd4 {[%clk
0:02:12.7]} 14. N2g3 {[%clk 0:01:40.9]} 14... Qd5 {[%clk 0:01:57.8]} 15. Qe2
{[%clk 0:01:36.8]} 15... Rac8 {[%clk 0:01:45.6]} 16. f5 {[%clk 0:01:29.4]} 16...
Kh8 {[%clk 0:00:59]} 17. fxe6 {[%clk 0:01:16.8]} 17... Qxe6 {[%clk 0:00:51.5]}
18. Nf5 {[%clk 0:01:01.5]} 18... Bxe4 {[%clk 0:00:47.6]} 19. dxe4 {[%clk
0:01:02.4]} 19... Bf6 {[%clk 0:00:45.7]} 20. Qd3 {[%clk 0:00:55.9]} 20... Be5
{[%clk 0:00:33.5]} 21. Nxd4 {[%clk 0:00:33.6]} 21... Bxd4+ {[%clk 0:00:32.9]}
22. Qxd4 {[%clk 0:00:32.7]} 22... Rxc2 {[%clk 0:00:33.3]} 23. Rf2 {[%clk
0:00:30.3]} 23... Rc4 {[%clk 0:00:27.9]} 24. Qd5 {[%clk 0:00:15]} 24... Rxe4
{[%clk 0:00:20.6]} 25. Qxe6 {[%clk 0:00:11.7]} 25... Rxe6 {[%clk 0:00:21.5]} 26.
Rd2 {[%clk 0:00:11.4]} 26... Re7 {[%clk 0:00:20.6]} 27. Rad1 {[%clk 0:00:11.8]}
27... Kg8 {[%clk 0:00:19.5]} 28. h3 {[%clk 0:00:12.5]} 28... f6 {[%clk
0:00:19.3]} 29. Rd7 {[%clk 0:00:12.5]} 29... Rfe8 {[%clk 0:00:19.4]} 30. Kf2
{[%clk 0:00:11.7]} 30... Kf7 {[%clk 0:00:19.3]} 31. R1d2 {[%clk 0:00:11.3]}
31... Rxd7 {[%clk 0:00:19.6]} 32. Rxd7+ {[%clk 0:00:12.2]} 32... Re7 {[%clk
0:00:20.5]} 33. Rd6 {[%clk 0:00:12.8]} 33... Rc7 {[%clk 0:00:18.1]} 34. Rd2
{[%clk 0:00:12.1]} 34... Ke6 {[%clk 0:00:17.5]} 35. a3 {[%clk 0:00:12.4]} 35...
f5 {[%clk 0:00:17.8]} 36. Kf3 {[%clk 0:00:12.7]} 36... g5 {[%clk 0:00:17.7]} 37.
g3 {[%clk 0:00:13.3]} 37... h5 {[%clk 0:00:17.5]} 38. b4 {[%clk 0:00:13.2]}
38... Ke5 {[%clk 0:00:17.9]} 39. Rd3 {[%clk 0:00:13.3]} 39... g4+ {[%clk
0:00:17.7]} 40. hxg4 {[%clk 0:00:13.3]} 40... hxg4+ {[%clk 0:00:18.6]} 41. Ke3
{[%clk 0:00:13.2]} 41... Rc4 {[%clk 0:00:15.9]} 42. Rb3 {[%clk 0:00:13.1]} 42...
f4+ {[%clk 0:00:14.6]} 43. gxf4+ {[%clk 0:00:13.5]} 43... Rxf4 {[%clk
0:00:15.3]} 44. Rb1 {[%clk 0:00:11.8]} 44... Rf3+ {[%clk 0:00:15.2]} 45. Ke2
{[%clk 0:00:11.7]} 45... Rxa3 {[%clk 0:00:15.8]} 46. Rg1 {[%clk 0:00:10.4]}
46... Kf4 {[%clk 0:00:15.9]} 47. Rf1+ {[%clk 0:00:10.4]} 47... Rf3 {[%clk
0:00:16]} 48. Rg1 {[%clk 0:00:09.8]} 48... g3 {[%clk 0:00:16.3]} 49. Rh1 {[%clk
0:00:07.9]} 49... Rf2+ {[%clk 0:00:16.2]} 50. Ke1 {[%clk 0:00:07.6]} 50... Kf3
{[%clk 0:00:16.7]} 51. Rh8 {[%clk 0:00:07.4]} 51... Re2+ {[%clk 0:00:15.8]} 52.
Kf1 {[%clk 0:00:07.2]} 52... Re4 {[%clk 0:00:16.3]} 53. Rf8+ {[%clk 0:00:06.7]}
53... Rf4 {[%clk 0:00:16.7]} 54. Re8 {[%clk 0:00:07.2]} 54... Rxb4 {[%clk
0:00:16.6]} 55. Rf8+ {[%clk 0:00:06.4]} 55... Rf4 {[%clk 0:00:16.6]} 56. Rg8
{[%clk 0:00:06.5]} 56... a5 {[%clk 0:00:16.6]} 57. Kg1 {[%clk 0:00:07]} 57... a4
{[%clk 0:00:16.6]} 58. Ra8 {[%clk 0:00:06.7]} 58... b5 {[%clk 0:00:16.7]} 59.
Rb8 {[%clk 0:00:06.9]} 59... b4 {[%clk 0:00:16.7]} 60. Ra8 {[%clk 0:00:07.6]}
60... a3 {[%clk 0:00:17.2]} 61. Rc8 {[%clk 0:00:05.8]} 61... Re4 {[%clk
0:00:12.7]} 62. Rb8 {[%clk 0:00:05.2]} 62... a2 {[%clk 0:00:12.4]} 63. Ra8
{[%clk 0:00:04.7]} 63... Re1# {[%clk 0:00:12.6]} 0-1

[Event "Betsys MČR v online bleskovém šachu 2021"]
[Site "Chess.com"]
[Date "2021.04.17"]
[Round "2"]
[White "Krvelacny_krecek"]
[Black "Krejcak"]
[Result "1-0"]
[WhiteElo "2381"]
[BlackElo "2001"]
[TimeControl "180+1"]
[EndTime "9:18:44 PDT"]
[Termination "Uživatel Krvelacny_krecek zvítězil na čas"]

1. d4 {[%clk 0:02:56]} 1... Nf6 {[%clk 0:02:59.2]} 2. c4 {[%clk 0:02:55.7]} 2...
g6 {[%clk 0:02:58.7]} 3. g3 {[%clk 0:02:56]} 3... Bg7 {[%clk 0:02:58.7]} 4. Bg2
{[%clk 0:02:56.3]} 4... O-O {[%clk 0:02:59.2]} 5. Nc3 {[%clk 0:02:56.4]} 5... d6
{[%clk 0:02:59.6]} 6. Nf3 {[%clk 0:02:56.5]} 6... c6 {[%clk 0:02:57.6]} 7. O-O
{[%clk 0:02:55.9]} 7... Nbd7 {[%clk 0:02:52.9]} 8. e4 {[%clk 0:02:55.6]} 8... e5
{[%clk 0:02:49.6]} 9. h3 {[%clk 0:02:55.8]} 9... Rb8 {[%clk 0:02:48.9]} 10. Be3
{[%clk 0:02:39]} 10... h6 {[%clk 0:02:48.1]} 11. Qc2 {[%clk 0:02:17.5]} 11...
Re8 {[%clk 0:02:39.4]} 12. Rad1 {[%clk 0:02:15.1]} 12... Qe7 {[%clk 0:02:39.1]}
13. Rfe1 {[%clk 0:02:04.2]} 13... Nf8 {[%clk 0:02:36.6]} 14. dxe5 {[%clk
0:01:43.3]} 14... dxe5 {[%clk 0:02:35.4]} 15. Bxa7 {[%clk 0:01:43.3]} 15... Ra8
{[%clk 0:02:29.6]} 16. Be3 {[%clk 0:01:43.2]} 16... g5 {[%clk 0:01:43.5]} 17.
Nd2 {[%clk 0:01:33.8]} 17... Ng6 {[%clk 0:01:42.5]} 18. Nb3 {[%clk 0:01:29.1]}
18... Be6 {[%clk 0:01:40.1]} 19. Bc5 {[%clk 0:01:13.3]} 19... Qc7 {[%clk
0:01:38.4]} 20. Bd6 {[%clk 0:01:13.4]} 20... Qc8 {[%clk 0:01:30.5]} 21. Kh2
{[%clk 0:01:02.1]} 21... Bxc4 {[%clk 0:01:29.5]} 22. a3 {[%clk 0:00:54.6]} 22...
b5 {[%clk 0:01:16.5]} 23. Nc5 {[%clk 0:00:53]} 23... Nh5 {[%clk 0:01:05.8]} 24.
Nb1 {[%clk 0:00:41.5]} 24... Ngf4 {[%clk 0:00:56]} 25. gxf4 {[%clk 0:00:33.5]}
25... Nxf4 {[%clk 0:00:55.6]} 26. b3 {[%clk 0:00:31]} 26... Be6 {[%clk
0:00:48.5]} 27. Nxe6 {[%clk 0:00:30.6]} 27... Qxe6 {[%clk 0:00:48.4]} 28. Bc5
{[%clk 0:00:24.7]} 28... g4 {[%clk 0:00:44.5]} 29. Re3 {[%clk 0:00:19.8]} 29...
Kh7 {[%clk 0:00:33.7]} 30. hxg4 {[%clk 0:00:18.6]} 30... Qxg4 {[%clk 0:00:33.2]}
31. Rg3 {[%clk 0:00:18.6]} 31... Qh4+ {[%clk 0:00:32.9]} 32. Kg1 {[%clk
0:00:18.7]} 32... Rg8 {[%clk 0:00:32.1]} 33. Rd7 {[%clk 0:00:14.7]} 33... Qf6
{[%clk 0:00:28.2]} 34. Be3 {[%clk 0:00:12.4]} 34... h5 {[%clk 0:00:23.7]} 35.
Bxf4 {[%clk 0:00:11]} 35... Qxf4 {[%clk 0:00:21.2]} 36. Rf3 {[%clk 0:00:09.5]}
36... Qg4 {[%clk 0:00:20.2]} 37. Rfxf7 {[%clk 0:00:08.2]} 37... Raf8 {[%clk
0:00:20.8]} 38. Rxf8 {[%clk 0:00:03.5]} 38... Rxf8 {[%clk 0:00:21]} 39. Qd1
{[%clk 0:00:03.1]} 39... Qg5 {[%clk 0:00:18.5]} 40. Qe2 {[%clk 0:00:02.8]} 40...
h4 {[%clk 0:00:18.3]} 41. Kh1 {[%clk 0:00:01.7]} 41... Kh6 {[%clk 0:00:18.5]}
42. Qe3 {[%clk 0:00:02]} 42... Bf6 {[%clk 0:00:18]} 43. Qxg5+ {[%clk 0:00:01.7]}
43... Bxg5 {[%clk 0:00:18.6]} 44. Rd6+ {[%clk 0:00:02.1]} 44... Kh5 {[%clk
0:00:16.1]} 45. f3 {[%clk 0:00:01.2]} 45... Bf4 {[%clk 0:00:15]} 46. Kg1 {[%clk
0:00:01.1]} 46... c5 {[%clk 0:00:12.6]} 47. Kf1 {[%clk 0:00:01.5]} 47... c4
{[%clk 0:00:12.3]} 48. Bh3 {[%clk 0:00:01.7]} 48... cxb3 {[%clk 0:00:10.8]} 49.
Bg4+ {[%clk 0:00:02.6]} 49... Kg5 {[%clk 0:00:10.3]} 50. Rd3 {[%clk 0:00:02.6]}
50... b2 {[%clk 0:00:06]} 51. Rb3 {[%clk 0:00:03]} 51... Rc8 {[%clk 0:00:05.5]}
52. Rxb2 {[%clk 0:00:03.2]} 52... Rc5 {[%clk 0:00:04.4]} 53. Ke2 {[%clk
0:00:03.2]} 53... h3 {[%clk 0:00:02.5]} 54. Kd3 {[%clk 0:00:03.2]} 54... Kh4
{[%clk 0:00:03.2]} 55. Nc3 {[%clk 0:00:03]} 55... h2 {[%clk 0:00:02.8]} 56.
Rxh2+ {[%clk 0:00:02.3]} 56... Bxh2 {[%clk 0:00:02.2]} 57. Nd5 {[%clk
0:00:01.2]} 1-0

[Event "Betsys MČR v online bleskovém šachu 2021"]
[Site "Chess.com"]
[Date "2021.04.17"]
[Round "2"]
[White "l_pavlasek"]
[Black "Molefancier"]
[Result "1-0"]
[WhiteElo "1658"]
[BlackElo "1071"]
[TimeControl "180+1"]
[EndTime "9:18:46 PDT"]
[Termination "Uživatel l_pavlasek zvítězil na čas"]

1. e4 {[%clk 0:03:00.9]} 1... c6 {[%clk 0:02:55.2]} 2. c4 {[%clk 0:02:55.9]}
2... e6 {[%clk 0:02:53.1]} 3. Nc3 {[%clk 0:02:43.1]} 3... d5 {[%clk 0:02:49.3]}
4. exd5 {[%clk 0:02:41.1]} 4... cxd5 {[%clk 0:02:48.3]} 5. d4 {[%clk 0:02:39.2]}
5... Nf6 {[%clk 0:02:46.1]} 6. Nf3 {[%clk 0:02:37.4]} 6... Bb4 {[%clk 0:02:45]}
7. Qa4+ {[%clk 0:02:31.9]} 7... Nc6 {[%clk 0:02:41.1]} 8. a3 {[%clk 0:02:23.2]}
8... Bxc3+ {[%clk 0:02:33.6]} 9. bxc3 {[%clk 0:02:22.2]} 9... Bd7 {[%clk
0:02:32.1]} 10. Qc2 {[%clk 0:02:17.3]} 10... O-O {[%clk 0:02:30.3]} 11. Bd3
{[%clk 0:02:11]} 11... h6 {[%clk 0:02:23.2]} 12. O-O {[%clk 0:02:09.6]} 12...
dxc4 {[%clk 0:02:15.3]} 13. Bxc4 {[%clk 0:02:08.1]} 13... Re8 {[%clk 0:02:15.4]}
14. Bb2 {[%clk 0:01:52.1]} 14... e5 {[%clk 0:02:04.7]} 15. dxe5 {[%clk
0:01:46.7]} 15... Nxe5 {[%clk 0:02:01.5]} 16. Nxe5 {[%clk 0:01:44.1]} 16... Rxe5
{[%clk 0:02:00.8]} 17. Qb3 {[%clk 0:01:42.2]} 17... Be6 {[%clk 0:01:50.3]} 18.
Bxe6 {[%clk 0:01:33.2]} 18... Rxe6 {[%clk 0:01:48]} 19. c4 {[%clk 0:01:31.7]}
19... Qe7 {[%clk 0:01:41]} 20. h3 {[%clk 0:01:22.5]} 20... Ne4 {[%clk
0:01:39.6]} 21. Rad1 {[%clk 0:01:03.4]} 21... a5 {[%clk 0:01:28.9]} 22. a4
{[%clk 0:00:59.5]} 22... Rd8 {[%clk 0:01:19.9]} 23. Rxd8+ {[%clk 0:00:57.6]}
23... Qxd8 {[%clk 0:01:19.3]} 24. Qf3 {[%clk 0:00:53.2]} 24... Nd2 {[%clk
0:01:11.4]} 25. Qg3 {[%clk 0:00:52.1]} 25... Rg6 {[%clk 0:01:03.6]} 26. Qc3
{[%clk 0:00:37.3]} 26... Nxf1 {[%clk 0:01:00.1]} 27. Kxf1 {[%clk 0:00:37.2]}
27... Qd1+ {[%clk 0:01:00]} 28. Qe1 {[%clk 0:00:35.6]} 28... Qxe1+ {[%clk
0:00:59.9]} 29. Kxe1 {[%clk 0:00:35.7]} 29... Re6+ {[%clk 0:00:59.2]} 30. Kd2
{[%clk 0:00:34.3]} 30... Rd6+ {[%clk 0:00:56.3]} 31. Ke3 {[%clk 0:00:32.3]}
31... Rc6 {[%clk 0:00:55]} 32. Kd4 {[%clk 0:00:28.9]} 32... f6 {[%clk
0:00:53.9]} 33. Bc3 {[%clk 0:00:27.4]} 33... Kf7 {[%clk 0:00:53.8]} 34. Bxa5
{[%clk 0:00:26.6]} 34... Ra6 {[%clk 0:00:51]} 35. Bb4 {[%clk 0:00:23.9]} 35...
Rxa4 {[%clk 0:00:50.8]} 36. Kc5 {[%clk 0:00:22.8]} 36... Ke6 {[%clk 0:00:48.5]}
37. Kb5 {[%clk 0:00:22.5]} 37... Ra6 {[%clk 0:00:46.5]} 38. Bc5 {[%clk
0:00:20.2]} 38... Kd7 {[%clk 0:00:42.8]} 39. Be3 {[%clk 0:00:20]} 39... Re6
{[%clk 0:00:40.1]} 40. g4 {[%clk 0:00:18.9]} 40... g6 {[%clk 0:00:39.3]} 41.
Bxh6 {[%clk 0:00:17]} 41... Re2 {[%clk 0:00:33.1]} 42. Be3 {[%clk 0:00:16.1]}
42... Rb2+ {[%clk 0:00:30.5]} 43. Ka4 {[%clk 0:00:12.7]} 43... Ra2+ {[%clk
0:00:27.5]} 44. Kb3 {[%clk 0:00:11.2]} 44... Ra6 {[%clk 0:00:27.5]} 45. h4
{[%clk 0:00:10.8]} 45... b6 {[%clk 0:00:25.3]} 46. h5 {[%clk 0:00:09.6]} 46...
gxh5 {[%clk 0:00:24]} 47. gxh5 {[%clk 0:00:09.2]} 47... Ra8 {[%clk 0:00:23]} 48.
h6 {[%clk 0:00:09]} 48... Rh8 {[%clk 0:00:22.5]} 49. Kb4 {[%clk 0:00:09.2]}
49... Kc6 {[%clk 0:00:20.1]} 50. Bd4 {[%clk 0:00:07]} 50... Rxh6 {[%clk
0:00:17.3]} 51. Be3 {[%clk 0:00:07.1]} 51... Rh5 {[%clk 0:00:14.1]} 52. Bd4
{[%clk 0:00:06.8]} 52... Rf5 {[%clk 0:00:12.1]} 53. Be3 {[%clk 0:00:06.6]} 53...
Rf3 {[%clk 0:00:09.8]} 54. Bd4 {[%clk 0:00:06]} 54... f5 {[%clk 0:00:09.1]} 55.
Be3 {[%clk 0:00:04.7]} 55... f4 {[%clk 0:00:06.6]} 56. Bd4 {[%clk 0:00:04.6]}
56... Rd3 {[%clk 0:00:04]} 57. Be5 {[%clk 0:00:03.6]} 57... f3 {[%clk
0:00:02.4]} 58. Bg3 {[%clk 0:00:02.5]} 1-0

[Event "Betsys MČR v online bleskovém šachu 2021"]
[Site "Chess.com"]
[Date "2021.04.17"]
[Round "2"]
[White "jhdghaka"]
[Black "nw_tynka"]
[Result "0-1"]
[WhiteElo "1872"]
[BlackElo "2210"]
[TimeControl "180+1"]
[EndTime "9:18:50 PDT"]
[Termination "Uživatel nw_tynka zvítězil po vzdání soupeře"]

1. e4 {[%clk 0:03:00.9]} 1... c5 {[%clk 0:02:59.4]} 2. Nf3 {[%clk 0:03:01]} 2...
Nc6 {[%clk 0:02:58.8]} 3. Bb5 {[%clk 0:03:01.2]} 3... g6 {[%clk 0:02:58]} 4. O-O
{[%clk 0:03:01.2]} 4... Bg7 {[%clk 0:02:57.6]} 5. Re1 {[%clk 0:03:00.3]} 5...
Nf6 {[%clk 0:02:55.7]} 6. e5 {[%clk 0:02:59.3]} 6... Nd5 {[%clk 0:02:54.9]} 7.
Bxc6 {[%clk 0:02:54]} 7... dxc6 {[%clk 0:02:50.5]} 8. Nc3 {[%clk 0:02:52.5]}
8... O-O {[%clk 0:02:46]} 9. d3 {[%clk 0:02:49.8]} 9... Nxc3 {[%clk 0:02:31.4]}
10. bxc3 {[%clk 0:02:50.7]} 10... Bg4 {[%clk 0:02:21.2]} 11. Bf4 {[%clk
0:02:49.9]} 11... Qd5 {[%clk 0:02:16]} 12. c4 {[%clk 0:02:41]} 12... Bxf3 {[%clk
0:02:09.7]} 13. Qxf3 {[%clk 0:02:22.5]} 13... Qxf3 {[%clk 0:02:08.8]} 14. gxf3
{[%clk 0:02:23.4]} 14... b6 {[%clk 0:01:49.7]} 15. a4 {[%clk 0:02:12.6]} 15...
f6 {[%clk 0:01:41.2]} 16. e6 {[%clk 0:01:58.7]} 16... f5 {[%clk 0:01:36.1]} 17.
Be5 {[%clk 0:01:39.3]} 17... Bxe5 {[%clk 0:01:18.4]} 18. Rxe5 {[%clk 0:01:40.2]}
18... a5 {[%clk 0:01:18.3]} 19. Rb1 {[%clk 0:01:39]} 19... Rab8 {[%clk
0:01:17.9]} 20. f4 {[%clk 0:01:10.6]} 20... Kg7 {[%clk 0:01:15.5]} 21. Kg2
{[%clk 0:01:08]} 21... Kf6 {[%clk 0:01:14.8]} 22. Kf3 {[%clk 0:01:06.6]} 22...
g5 {[%clk 0:01:08.5]} 23. Rg1 {[%clk 0:00:45.7]} 23... g4+ {[%clk 0:00:58.3]}
24. Ke3 {[%clk 0:00:38.8]} 24... h5 {[%clk 0:00:54.3]} 25. Rb1 {[%clk
0:00:37.5]} 25... h4 {[%clk 0:00:50.1]} 26. c3 {[%clk 0:00:37.1]} 26... Rfd8
{[%clk 0:00:43.8]} 27. d4 {[%clk 0:00:35.8]} 27... cxd4+ {[%clk 0:00:35.9]} 28.
cxd4 {[%clk 0:00:36.7]} 28... Rg8 {[%clk 0:00:22.9]} 29. d5 {[%clk 0:00:24.1]}
29... cxd5 {[%clk 0:00:20.1]} 30. cxd5 {[%clk 0:00:25]} 30... Rgc8 {[%clk
0:00:19.5]} 31. Kd3 {[%clk 0:00:22.5]} 31... Rc5 {[%clk 0:00:18.9]} 32. Kd4
{[%clk 0:00:15.3]} 32... Rc2 {[%clk 0:00:17.6]} 33. Rf1 {[%clk 0:00:14.6]} 33...
Rbc8 {[%clk 0:00:16.8]} 34. d6 {[%clk 0:00:12.2]} 34... exd6 {[%clk 0:00:16]}
35. Rb5 {[%clk 0:00:12.2]} 35... R8c4+ {[%clk 0:00:14.8]} 36. Kd5 {[%clk
0:00:12.1]} 36... Rxa4 {[%clk 0:00:13.6]} 37. Rxb6 {[%clk 0:00:11.9]} 37... Rd2+
{[%clk 0:00:11.8]} 38. Kc6 {[%clk 0:00:12]} 38... Kxe6 {[%clk 0:00:11]} 39. Kb5
{[%clk 0:00:12.3]} 39... Rb4+ {[%clk 0:00:10.5]} 40. Kxa5 {[%clk 0:00:11.6]}
40... Rxb6 {[%clk 0:00:10.2]} 41. Kxb6 {[%clk 0:00:12.5]} 41... Rd4 {[%clk
0:00:09.8]} 42. h3 {[%clk 0:00:09.5]} 42... Kd5 {[%clk 0:00:09.2]} 43. hxg4
{[%clk 0:00:09.4]} 43... fxg4 {[%clk 0:00:08.9]} 44. f5 {[%clk 0:00:09.6]} 44...
Rf4 {[%clk 0:00:08.1]} 45. Rd1+ {[%clk 0:00:09.3]} 45... Ke5 {[%clk 0:00:07.6]}
46. Kc6 {[%clk 0:00:09.2]} 46... Rc4+ {[%clk 0:00:06.9]} 47. Kb5 {[%clk
0:00:09.1]} 47... Rc2 {[%clk 0:00:06.3]} 48. f6 {[%clk 0:00:07.2]} 48... Kxf6
{[%clk 0:00:05.9]} 49. Rxd6+ {[%clk 0:00:07.3]} 49... Kf5 {[%clk 0:00:05.5]} 50.
Rd8 {[%clk 0:00:07.3]} 50... Kf4 {[%clk 0:00:04.3]} 51. Rf8+ {[%clk 0:00:06.6]}
51... Ke4 {[%clk 0:00:04]} 52. Rg8 {[%clk 0:00:05.7]} 52... Kf3 {[%clk
0:00:03.3]} 53. Rf8+ {[%clk 0:00:06.1]} 53... Kg2 {[%clk 0:00:03]} 54. Rg8
{[%clk 0:00:03.5]} 54... g3 {[%clk 0:00:02.7]} 55. f4 {[%clk 0:00:03.3]} 55...
Rf2 {[%clk 0:00:02.3]} 56. Rg4 {[%clk 0:00:01.6]} 56... h3 {[%clk 0:00:03.2]}
57. f5 {[%clk 0:00:01.7]} 57... h2 {[%clk 0:00:03.3]} 58. Rg5 {[%clk 0:00:02.6]}
58... h1=Q {[%clk 0:00:03.2]} 59. Rh5 {[%clk 0:00:03.5]} 59... Qxh5 {[%clk
0:00:02.7]} 0-1